bitfinex-derivatives/quotes_BNBF0:USTF0_20251219
["timestamp","ask_amount","ask_price","bid_price","bid_amount"]
[1766132760915,0.20595677,845.09,844.42,0.88453358]
[1766132761114,0.20595677,845.09,844.43,0.88453358]
[1766132762116,0.20595677,845.09,844.44,0.88453358]
[1766132762316,0.20595677,845.09,844.46,0.88453358]
[1766132763220,0.20595677,845.09,844.48,0.88453358]
[1766132763420,0.20595677,845.09,844.51,0.88453358]
[1766132763620,0.20595677,845.09,844.56,0.88453358]
[1766132763916,0.20595677,845.09,844.58,0.88453358]
[1766132764316,0.20595677,845.09,844.6,0.88453358]
[1766132765318,0.20595677,845.09,844.59,0.88453358]
[1766132766121,0.20595677,845.09,844.58,0.88453358]
[1766132767323,0.20595677,845.09,844.5,0.88453358]
[1766132768118,0.20595677,845.09,844.49,0.88453358]
[1766132768322,0.20595677,845.09,844.45,0.88453358]
[1766132770829,0.20595677,845.09,844.52,0.88453358]
[1766132771326,0.20595677,845.09,844.51,0.88453358]
[1766132772231,0.20595677,845.09,844.44,0.88453358]
[1766132772531,0.20595677,845.09,844.39,0.88453358]
[1766132773128,0.20595677,845.09,844.35,6.931]
[1766132773129,0.20595677,845.09,844.37,0.88453358]
[1766132774234,0.20595677,845.09,844.38,0.88453358]
[1766132774434,0.20595677,845.09,844.47,0.88453358]
[1766132776835,0.20595677,845.09,844.35,6.931]
[1766132776836,0.20595677,845.09,844.44,0.88453358]
[1766132778233,0.20595677,845.09,844.45,0.88453358]
[1766132779438,0.20595677,845.09,844.47,0.88453358]
[1766132780336,0.20595677,845.09,844.48,0.88453358]
[1766132781137,0.20595677,845.09,844.49,0.88453358]
[1766132781640,0.20595677,845.09,844.52,0.88453358]
[1766132783239,0.20595677,845.09,844.53,0.88453358]
[1766132784238,0.20595677,845.09,844.5,0.88453358]
[1766132784741,0.20595677,845.09,844.49,0.88453358]
[1766132785140,0.20595677,845.09,844.42,8.79164479]
[1766132785141,0.20595677,845.09,844.45,0.88453358]
[1766132786141,0.20595677,845.09,844.46,0.88453358]
[1766132787143,0.20595677,845.09,844.47,0.88453358]
[1766132788139,0.20595677,845.09,844.48,0.88453358]
[1766132788438,0.20595677,845.09,844.46,0.88453358]
[1766132789143,0.20595677,845.09,844.47,0.88453358]
[1766132789338,0.20595677,845.09,844.48,0.88453358]
[1766132790643,0.20595677,845.09,844.47,0.88453358]
[1766132791039,0.20595677,845.09,844.42,8.79164479]
[1766132791040,0.20595677,845.09,844.44,0.88453358]
[1766132791543,0.20595677,845.09,844.42,8.79164479]
[1766132822057,0.20595677,845.09,844.42,9.67649249]
[1766132823559,0.20595677,845.09,844.51,0.8848477]
[1766132823764,0.20595677,845.09,844.53,0.8848477]
[1766132825458,0.20595677,845.09,844.52,0.8848477]
[1766132825862,0.20595677,845.09,844.46,0.8848477]
[1766132827465,0.20595677,845.09,844.42,8.79164479]
[1766132835369,0.20595677,845.09,844.42,9.67649249]
[1766132835674,0.20595677,845.09,844.48,0.8848477]
[1766132835868,0.20595677,845.09,844.51,0.8848477]
[1766132836072,0.20595677,845.09,844.56,0.8848477]
[1766132836973,0.20595677,845.09,844.57,0.8848477]
[1766132839276,0.20595677,845.09,844.56,0.8848477]
[1766132840575,0.20595677,845.09,844.58,0.8848477]
[1766132841672,0.20595677,845.09,844.57,0.8848477]
[1766132841977,0.20595677,845.09,844.56,0.8848477]
[1766132843577,0.20595677,845.09,844.55,0.8848477]
[1766132843877,0.20595677,845.09,844.52,0.8848477]
[1766132844872,0.20595677,845.09,844.42,8.79164479]
[1766132844873,0.20595677,845.09,844.51,0.8848477]
[1766132845078,0.20595677,845.09,844.48,0.8848477]
[1766132846272,0.20595677,845.09,844.44,0.8848477]
[1766132846579,0.20595677,845.09,844.43,0.8848477]
[1766132848279,0.20595677,845.09,844.42,9.67649249]
[1766132848574,0.20595677,845.09,844.42,8.79164479]
[1766132852183,0.20595677,845.09,844.46,0.8848477]
[1766132853577,0.20595677,845.09,844.47,0.8848477]
[1766132854382,0.20595677,845.09,844.44,0.8848477]
[1766132854778,0.20595677,845.09,844.42,8.79164479]
[1766132856380,0.20595677,845.09,844.42,9.67649249]
[1766132856780,0.20595677,845.09,844.42,8.79164479]
[1766132856981,0.20595677,845.09,844.42,9.67703907]
[1766132857180,0.20595677,845.09,844.42,8.79164479]
[1766132857884,0.20595677,845.09,844.42,9.67703907]
[1766132858382,0.20595677,845.09,844.43,0.88539428]
[1766132859385,0.20595677,845.09,844.42,8.79164479]
[1766132859386,0.20595677,845.09,844.44,0.88539428]
[1766132860882,0.20595677,845.09,844.48,0.88539428]
[1766132863286,0.20595677,845.09,844.49,0.88539428]
[1766132863487,0.20595677,845.09,844.48,0.88539428]
[1766132864286,0.20595677,845.09,844.44,0.88539428]
[1766132864687,0.20595677,845.09,844.42,8.79164479]
[1766132867089,0.20595677,845.09,844.42,9.67703907]
[1766132867390,0.20595677,845.09,844.45,0.88539428]
[1766132868586,0.20595677,845.09,844.44,0.88539428]
[1766132870288,0.20595677,845.09,844.45,0.88539428]
[1766132870889,0.20595677,845.09,844.48,0.88539428]
[1766132871390,0.20595677,845.09,844.49,0.88539428]
[1766132874293,0.20595677,845.09,844.5,0.88539428]
[1766132875388,0.20595677,845.09,844.49,0.88539428]
[1766132875589,0.20595677,845.09,844.45,0.88539428]
[1766132876188,0.20595677,845.09,844.44,0.88539428]
[1766132877792,0.20595677,845.09,844.43,0.88539428]
[1766132877991,0.20595677,845.09,844.42,8.79164479]
[1766132882198,0.20595677,845.09,844.38,0.88539428]
[1766132882400,0.20595677,845.09,844.21,0.88539428]
[1766132882899,0.20595677,845.09,844.26,0.88539428]
[1766132883298,0.20595677,845.09,844.28,0.88539428]
[1766132883697,0.20595677,845.09,844.29,0.88539428]
[1766132884004,0.20595677,845.09,844.25,0.88539428]
[1766132884202,0.20595677,845.09,844.24,0.88539428]
[1766132884401,0.20595677,845.09,844.13,0.88539428]
[1766132884600,0.20595677,845.09,844.12,0.88539428]
[1766132884899,1.18149355,845.02,843.93,0.88539428]
[1766132885103,0.88424315,844.87,843.85,0.88539428]
[1766132885401,14.02430654,844.87,843.86,0.88539428]
[1766132886298,14.02430654,844.87,843.9,0.88539428]
[1766132886299,13.14006339,844.87,843.9,0.88539428]
[1766132886701,13.14006339,844.87,843.94,0.88539428]
[1766132887398,13.14006339,844.87,843.92,0.88539428]
[1766132888202,13.14006339,844.87,843.9,0.88539428]
[1766132888599,13.14006339,844.87,843.85,0.88539428]
[1766132888998,13.14006339,844.87,843.9,0.88539428]
[1766132889203,13.14006339,844.87,843.89,0.88539428]
[1766132890205,13.14006339,844.87,843.88,0.88539428]
[1766132890405,13.14006339,844.87,843.86,0.88539428]
[1766132890705,13.14006339,844.87,843.79,0.88539428]
[1766132891205,13.14006339,844.87,843.77,0.88539428]
[1766132891605,13.14006339,844.87,843.82,0.88539428]
[1766132892106,13.14006339,844.87,843.69,7.173]
[1766132892107,13.14006339,844.87,843.81,0.88539428]
[1766132892305,13.14006339,844.87,843.8,0.88539428]
[1766132892800,13.14006339,844.87,843.76,0.88539428]
[1766132893206,13.14006339,844.87,843.74,0.88539428]
[1766132894007,13.14006339,844.87,843.78,0.88539428]
[1766132894308,13.14006339,844.87,843.77,0.88539428]
[1766132894906,13.14006339,844.87,843.73,0.88539428]
[1766132895304,13.14006339,844.87,843.72,0.88539428]
[1766132895608,13.14006339,844.87,843.68,0.88539428]
[1766132895905,13.14006339,844.87,843.63,0.88539428]
[1766132896309,13.14006339,844.87,843.61,0.88539428]
[1766132897104,13.14006339,844.87,843.62,7.269]
[1766132900609,14.02430654,844.87,843.62,7.269]
[1766132901105,13.14006339,844.87,843.62,7.269]
[1766132904108,14.02430654,844.87,843.62,7.269]
[1766132904507,0.88424315,844.84,843.62,7.269]
[1766132904712,0.88424315,844.86,843.62,7.269]
[1766132905111,14.02430654,844.87,843.62,7.269]
[1766132905813,0.88424315,844.85,843.62,7.269]
[1766132906311,14.02430654,844.87,843.62,7.269]
[1766132907213,13.14006339,844.87,843.62,7.269]
[1766132908512,0.88424315,844.78,843.62,7.269]
[1766132908714,0.88424315,844.73,843.62,7.269]
[1766132909308,0.88424315,844.75,843.62,7.269]
[1766132910013,0.88424315,844.71,843.62,7.269]
[1766132910313,0.88424315,844.68,843.62,7.269]
[1766132911110,0.88424315,844.7,843.62,7.269]
[1766132912309,0.88424315,844.71,843.62,7.269]
[1766132913209,0.88424315,844.67,843.62,7.269]
[1766132913615,0.88424315,844.66,843.62,7.269]
[1766132914116,0.88424315,844.64,843.62,7.269]
[1766132914315,13.14006339,844.87,843.62,7.269]
[1766132914316,0.88424315,844.54,843.62,7.269]
[1766132915215,0.88424315,844.56,843.62,7.269]
[1766132916111,0.88424315,844.51,843.62,7.269]
[1766132916414,0.88424315,844.53,843.62,7.269]
[1766132917012,0.88424315,844.46,843.62,7.269]
[1766132917211,0.88424315,844.48,843.62,7.269]
[1766132918115,0.88424315,844.5,843.62,7.269]
[1766132918615,0.88424315,844.48,843.62,7.269]
[1766132919415,13.14006339,844.87,843.62,7.269]
[1766132919416,0.88424315,844.5,843.62,7.269]
[1766132920217,0.88424315,844.51,843.62,7.269]
[1766132921017,0.88424315,844.5,843.62,7.269]
[1766132921214,0.88424315,844.37,843.62,7.269]
[1766132921516,0.88424315,844.22,843.62,7.269]
[1766132922113,0.88424315,844.25,843.62,7.269]
[1766132922918,0.88424315,844.2,843.62,7.269]
[1766132923113,0.88424315,844.15,843.62,7.269]
[1766132923313,0.88424315,844.18,843.62,7.269]
[1766132924218,0.88424315,844.2,843.62,7.269]
[1766132924817,1.77238836,844.51,843.62,7.269]
[1766132924818,0.88424315,844.15,843.62,7.269]
[1766132925214,0.88424315,844.18,843.62,7.269]
[1766132926121,0.88424315,844.16,843.62,7.269]
[1766132926616,0.88424315,844.11,842.94,0.00912167]
[1766132926814,0.88424315,844.01,842.1,0.01466088]
[1766132927014,0.88424315,844.0,841.94,8.95169608]
[1766132927217,0.88424315,844.03,841.94,8.95169608]
[1766132927419,0.88424315,843.95,841.94,8.95169608]
[1766132927621,0.88424315,843.92,841.94,8.95169608]
[1766132928316,0.88424315,843.95,841.94,8.95169608]
[1766132929116,0.88424315,843.95,841.94,8.74537544]
[1766132929520,0.88424315,844.05,841.94,8.74537544]
[1766132929721,0.88424315,844.06,841.94,8.74537544]
[1766132929919,0.88424315,844.15,841.94,8.74537544]
[1766132930119,0.88424315,844.25,841.94,8.74537544]
[1766132931123,0.88424315,844.26,841.94,8.74537544]
[1766132932720,0.88424315,844.3,841.94,8.74537544]
[1766132933222,0.20639529,843.72,841.94,8.74537544]
[1766132957545,0.88424315,843.7,841.94,8.74537544]
[1766132957744,1.09063844,843.72,841.94,8.74537544]
[1766132957948,0.20639529,843.72,841.94,8.74537544]
[1766132966257,1.07890816,843.72,841.94,8.74537544]
[1766132966458,1.15468129,843.71,841.94,8.74537544]
[1766132966757,0.87251287,843.7,841.94,8.74537544]
[1766132966960,1.15468129,843.69,841.94,8.74537544]
[1766132967258,0.87251287,843.63,841.94,8.74537544]
[1766132967458,1.15468129,843.62,841.94,8.74537544]
[1766132968154,0.87251287,843.6,841.94,8.74537544]
[1766132968356,2.02719416,843.59,841.94,8.74537544]
[1766132968658,1.15468129,843.58,841.94,8.74537544]
[1766132969159,0.87251287,843.57,841.94,8.74537544]
[1766132969354,1.15468129,843.56,841.94,8.74537544]
[1766132969756,0.87251287,843.61,841.94,8.74537544]
[1766132969960,1.16119693,843.6,841.94,8.74537544]
[1766132970260,12.76033948,843.6,842.0,0.87641912]
[1766132971262,12.76033948,843.6,842.09,0.87641912]
[1766132971762,12.76033948,843.6,842.16,0.87641912]
[1766132972261,12.76033948,843.6,841.94,8.74537544]
[1766132972262,12.76033948,843.6,842.2,0.87641912]
[1766132973164,12.76033948,843.6,842.23,0.87641912]
[1766132974260,12.76033948,843.6,842.26,0.87641912]
[1766132975066,12.76033948,843.6,842.35,0.87641912]
[1766132975264,12.76033948,843.6,842.38,0.87641912]
[1766132975960,12.76033948,843.6,842.37,0.87641912]
[1766132976160,12.76033948,843.6,842.4,0.87641912]
[1766132976863,12.76033948,843.6,842.41,0.87641912]
[1766132977260,12.76033948,843.6,842.26,1.18030181]
[1766132977261,12.76033948,843.6,842.43,0.87641912]
[1766132978165,12.76033948,843.6,842.45,0.87641912]
[1766132979165,12.76033948,843.6,842.48,0.87641912]
[1766132979368,12.76033948,843.6,842.47,0.87641912]
[1766132979564,12.76033948,843.6,842.46,0.87641912]
[1766132979764,1.16869494,843.59,842.4,0.87641912]
[1766132980268,0.87251287,843.58,842.43,0.87641912]
[1766132980570,1.16869494,843.57,842.43,0.87641912]
[1766132981169,1.16869494,843.57,842.27,1.18030181]
[1766132981366,2.05147744,843.56,842.44,0.88593845]
[1766132981670,0.8827825,843.53,842.41,0.88593845]
[1766132981864,1.16869494,843.52,842.41,0.88593845]
[1766132982165,0.8827825,843.48,842.37,0.88593845]
[1766132982365,1.1698434,843.47,842.37,0.88593845]
[1766132982565,0.8827825,843.46,842.35,0.88593845]
[1766132982768,1.1698434,843.45,842.35,0.88593845]
[1766132983164,2.0526259,843.45,842.35,0.88593845]
[1766132983368,1.1698434,843.44,842.35,0.88593845]
[1766132983565,0.8827825,843.42,842.32,0.88593845]
[1766132983764,0.8827825,843.37,842.27,0.88593845]
[1766132983970,1.1699378,843.36,842.27,0.88593845]
[1766132984169,0.8827825,843.35,842.26,0.88593845]
[1766132984366,1.1699378,843.34,842.26,0.88593845]
[1766132985169,0.8827825,843.31,842.22,0.88593845]
[1766132985369,1.1699378,843.3,842.22,0.88593845]
[1766132986269,2.0527203,843.3,842.22,0.88593845]
[1766132986565,1.1699378,843.29,842.22,0.88593845]
[1766132989370,1.1699378,843.29,842.23,0.88593845]
[1766132990171,0.8827825,843.27,842.2,0.88593845]
[1766132990374,1.1699378,843.26,842.2,0.88593845]
[1766132992071,0.8827825,843.09,842.02,0.88593845]
[1766132992272,1.1699378,843.08,842.01,0.88593845]
[1766132992477,1.1699378,843.07,842.02,0.88593845]
[1766132992776,0.8827825,843.16,842.07,0.88593845]
[1766132992976,0.8827825,843.25,842.17,0.88593845]
[1766132993176,1.17001331,843.24,842.17,0.88593845]
[1766132993672,0.8827825,843.19,842.11,0.88593845]
[1766132993871,1.17001331,843.18,842.11,0.88593845]
[1766132995671,0.8827825,843.13,842.05,0.88593845]
[1766132995876,0.8827825,843.05,841.96,0.88593845]
[1766132996072,0.8827825,843.12,842.04,0.88593845]
[1766132996276,1.1696846,843.11,842.03,0.88593845]
[1766132996576,1.1696846,843.1,842.03,0.88593845]
[1766132996873,1.1696846,843.09,842.03,0.88593845]
[1766132997171,0.8827825,843.13,842.03,0.88593845]
[1766132997375,1.1695245,843.12,842.03,0.88593845]
[1766132998276,0.8827825,843.18,842.07,0.88593845]
[1766132998576,1.16945755,843.17,842.07,0.88593845]
[1766133001480,1.16945755,843.16,842.07,0.88593845]
[1766133001674,2.05224005,843.15,842.03,0.88593845]
[1766133001877,1.16945755,843.14,842.03,0.88593845]
[1766133002680,1.16945755,843.14,842.06,0.88593845]
[1766133002879,0.8827825,843.3,842.18,0.88593845]
[1766133003077,0.8827825,843.38,842.26,0.88593845]
[1766133003276,1.16918145,843.37,842.26,0.88593845]
[1766133003679,2.05196395,843.37,842.25,0.88593845]
[1766133003975,1.16918145,843.36,842.26,0.88593845]
[1766133004179,1.16918145,843.35,842.26,0.88593845]
[1766133004380,0.8827825,843.38,842.26,0.88593845]
[1766133004577,1.1697881,843.37,842.27,0.88593845]
[1766133004777,1.1697881,843.36,842.26,0.88593845]
[1766133004980,1.1697881,843.35,842.25,0.88593845]
[1766133005181,1.1697881,843.34,842.25,0.88593845]
[1766133005381,0.8827825,843.32,842.2,0.88593845]
[1766133005682,1.1697881,843.31,842.2,0.88593845]
[1766133006785,0.8827825,843.35,842.23,0.88593845]
[1766133006980,0.8827825,843.41,842.29,0.88593845]
[1766133007184,0.8827825,843.47,842.35,0.88593845]
[1766133007483,1.16993109,843.46,842.35,0.88593845]
[1766133007879,1.16993109,843.46,842.36,0.88593845]
[1766133008085,1.16993109,843.45,842.36,0.88593845]
[1766133008382,0.8827825,843.56,842.44,0.88593845]
[1766133008584,1.1700495,843.55,842.44,0.88593845]
[1766133009379,1.1700495,843.55,842.43,0.88593845]
[1766133009581,1.1700495,843.54,842.43,0.88593845]
[1766133009880,0.8827825,843.57,842.43,0.88593845]
[1766133010084,0.8827825,843.57,842.13,1.77073333]
[1766133010085,12.76033948,843.6,842.48,0.88593845]
[1766133010281,12.76033948,843.6,842.52,0.88593845]
[1766133010685,12.76033948,843.6,842.56,0.88593845]
[1766133011284,12.76033948,843.6,842.55,0.88593845]
[1766133013087,12.76033948,843.6,842.59,0.88593845]
[1766133013287,12.76033948,843.6,842.58,0.88593845]
[1766133014182,12.76033948,843.6,842.55,0.88593845]
[1766133014990,12.76033948,843.6,842.53,0.88593845]
[1766133015793,12.76033948,843.6,842.46,0.88593845]
[1766133017685,0.8827825,843.57,842.35,0.88593845]
[1766133017887,1.16862372,843.56,842.35,0.88593845]
[1766133019292,12.76033948,843.6,842.39,0.88593845]
[1766133019496,1.16848821,843.59,842.39,0.88593845]
[1766133019999,12.76033948,843.6,842.43,0.88593845]
[1766133023203,12.76033948,843.6,842.42,0.88593845]
[1766133027403,12.76033948,843.6,842.41,0.88593845]
[1766133027604,12.76033948,843.6,842.4,0.88593845]
[1766133028305,12.76033948,843.6,842.41,0.88593845]
[1766133031406,12.76033948,843.6,842.25,1.18030181]
[1766133031407,1.16828327,843.59,842.39,0.88593845]
[1766133031606,0.8827825,843.51,842.27,0.88593845]
[1766133031905,1.16828327,843.5,842.27,0.88593845]
[1766133033106,1.16828327,843.5,842.28,0.88593845]
[1766133033406,1.16828327,843.5,842.27,0.88593845]
[1766133034102,1.16828327,843.5,842.28,0.88593845]
[1766133034308,0.8827825,843.54,842.3,0.88593845]
[1766133034508,1.16572757,843.53,842.3,0.88593845]
[1766133035008,0.8827825,843.46,842.22,0.88593845]
[1766133035208,2.04851007,843.45,842.22,0.88593845]
[1766133035409,0.8827825,843.41,842.18,0.88593845]
[1766133035609,0.8827825,843.39,842.16,0.88593845]
[1766133035809,1.16572757,843.38,842.16,0.88593845]
[1766133036305,0.8827825,843.48,842.25,0.88593845]
[1766133036513,1.1657184,843.47,842.25,0.88593845]
[1766133036708,1.1657184,843.47,842.27,0.88593845]
[1766133036908,1.1657184,843.46,842.27,0.88593845]
[1766133037108,0.8827825,843.57,842.34,0.88593845]
[1766133037408,1.16609946,843.56,842.35,0.88593845]
[1766133039209,2.04888196,843.56,842.35,0.88593845]
[1766133039512,1.16609946,843.55,842.35,0.88593845]
[1766133041813,0.8827825,843.54,842.33,0.88593845]
[1766133042013,1.16609946,843.53,842.33,0.88593845]
[1766133042813,1.16609946,843.53,842.35,0.88593845]
[1766133043014,0.8827825,843.58,842.37,0.88593845]
[1766133043210,12.76033948,843.6,842.43,0.88593845]
[1766133044012,1.16624314,843.59,842.43,0.88593845]
[1766133044311,1.16624314,843.59,842.4,0.88593845]
[1766133045713,0.8827825,843.58,842.37,0.88593845]
[1766133045919,0.8827825,843.53,842.32,0.88593845]
[1766133046116,1.16624314,843.52,842.32,0.88593845]
[1766133046319,1.16624314,843.52,842.02,1.77073333]
[1766133046320,0.8827825,843.49,842.28,0.88593845]
[1766133046519,0.8827825,843.46,842.25,0.88593845]
[1766133046719,0.8827825,843.4,842.19,0.88593845]
[1766133046918,1.16624314,843.39,842.19,0.88593845]
[1766133047119,1.16624314,843.39,842.2,0.88593845]
[1766133047319,1.16624314,843.38,842.2,0.88593845]
[1766133047515,0.8827825,843.41,842.2,0.88593845]
[1766133047719,1.16599924,843.4,842.2,0.88593845]
[1766133048214,1.16599924,843.4,842.2,8.91072237]
[1766133048414,0.8827825,843.44,842.23,0.88593845]
[1766133048613,1.16607337,843.43,842.23,0.88593845]
[1766133049115,0.8827825,843.44,842.24,0.88593845]
[1766133049319,0.8827825,843.52,842.32,0.88593845]
[1766133049518,1.16627876,843.51,842.32,0.88593845]
[1766133052222,2.04906126,843.51,842.32,0.88593845]
[1766133052421,1.16627876,843.5,842.33,0.88593845]
[1766133052622,0.8827825,843.51,842.34,0.88593845]
[1766133052823,0.8827825,843.55,842.37,0.88593845]
[1766133053023,1.16678,843.54,842.37,0.88593845]
[1766133053223,2.0495625,843.54,842.38,0.88593845]
[1766133053418,1.16678,843.53,842.4,0.88593845]
[1766133053722,12.76033948,843.6,842.45,0.88593845]
[1766133053922,1.16700538,843.59,842.45,0.88593845]
[1766133054823,1.16700538,843.59,842.2,8.02478392]
[1766133054824,1.16700538,843.59,842.47,0.88593845]
[1766133055224,12.76033948,843.6,842.54,0.88593845]
[1766133055821,12.76033948,843.6,842.55,0.88593845]
[1766133056125,12.76033948,843.6,842.64,0.88593845]
[1766133056425,12.76033948,843.6,842.65,0.88593845]
[1766133057328,12.76033948,843.6,842.66,0.88593845]
[1766133058226,12.76033948,843.6,842.65,0.88593845]
[1766133058525,12.76033948,843.6,842.2,8.02478392]
[1766133058526,12.76033948,843.6,842.66,0.88593845]
[1766133059220,12.76033948,843.6,842.67,0.88593845]
[1766133060625,12.76033948,843.6,842.2,8.02478392]
[1766133060626,12.76033948,843.6,842.7,0.88593845]
[1766133061324,12.76033948,843.6,842.71,0.88593845]
[1766133061627,12.76033948,843.6,842.75,0.88593845]
[1766133062023,12.76033948,843.6,842.8,0.88593845]
[1766133062223,12.76033948,843.6,842.87,0.88593845]
[1766133062924,12.76033948,843.6,842.83,0.88593845]
[1766133063130,12.76033948,843.6,842.81,0.88593845]
[1766133063329,12.76033948,843.6,842.66,1.18030181]
[1766133063330,12.76033948,843.6,842.8,0.88593845]
[1766133063727,12.76033948,843.6,842.82,0.88593845]
[1766133064227,12.76033948,843.6,842.81,0.88593845]
[1766133064926,12.76033948,843.6,842.2,8.02478392]
[1766133064927,12.76033948,843.6,842.78,0.88593845]
[1766133065326,12.76033948,843.6,842.77,0.88593845]
[1766133066527,12.76033948,843.6,842.73,0.88593845]
[1766133067631,12.76033948,843.6,842.7,0.88593845]
[1766133067832,12.76033948,843.6,842.66,0.88593845]
[1766133069030,12.76033948,843.6,842.62,0.88593845]
[1766133070937,12.76033948,843.6,842.56,0.88593845]
[1766133071134,12.76033948,843.6,842.53,0.88593845]
[1766133071435,1.16686466,843.59,842.51,0.88593845]
[1766133071730,2.04964716,843.59,842.45,0.88593845]
[1766133071934,0.8827825,843.55,842.42,0.88593845]
[1766133072131,1.16686466,843.54,842.42,0.88593845]
[1766133073437,1.16686466,843.54,842.44,0.88593845]
[1766133073838,1.16686466,843.53,842.44,0.88593845]
[1766133074038,1.16686466,843.52,842.44,0.88593845]
[1766133074239,1.16686466,843.51,842.44,0.88593845]
[1766133074437,2.04964716,843.5,842.37,0.88593845]
[1766133074739,1.16686466,843.49,842.37,0.88593845]
[1766133075336,1.16686466,843.48,842.37,0.88593845]
[1766133075540,1.16686466,843.47,842.37,0.88593845]
[1766133075840,1.16686466,843.46,842.37,0.88593845]
[1766133076041,1.16686466,843.45,842.37,0.88593845]
[1766133076336,1.16669129,843.44,842.32,0.88593845]
[1766133077237,1.16669129,843.44,842.31,0.88593845]
[1766133078338,1.16669129,843.43,842.31,0.88593845]
[1766133078539,1.16669129,843.42,842.31,0.88593845]
[1766133078738,1.16669129,843.41,842.31,0.88593845]
[1766133078940,1.16669129,843.4,842.31,0.88593845]
[1766133079139,1.16659224,843.39,842.31,0.88593845]
[1766133079341,0.8827825,843.42,842.27,0.88593845]
[1766133079545,1.16649094,843.41,842.27,0.88593845]
[1766133079739,0.8827825,843.38,842.24,0.88593845]
[1766133079943,1.16649094,843.37,842.24,0.88593845]
[1766133080344,2.04927344,843.37,842.21,0.88593845]
[1766133080544,1.16649094,843.36,842.21,0.88593845]
[1766133081253,1.16649094,843.36,842.2,8.91072237]
[1766133081446,2.04927344,843.36,842.2,8.02478392]
[1766133081649,1.16649094,843.35,842.2,8.02478392]
[1766133081847,0.8827825,843.32,842.2,8.02478392]
[1766133082151,1.16649094,843.31,842.2,8.02478392]
[1766133082349,1.16649094,843.3,842.2,8.02478392]
[1766133082546,0.8827825,843.35,842.2,8.02478392]
[1766133082749,1.1659672,843.34,842.2,8.02478392]
[1766133083352,0.8827825,843.36,842.2,8.02478392]
[1766133083353,1.1659672,843.33,842.2,8.02478392]
[1766133083553,12.76033948,843.6,842.2,8.02478392]
[1766133083554,1.1659672,843.32,842.2,8.02478392]
[1766133083755,0.8827825,843.38,842.2,8.02478392]
[1766133084056,1.16596872,843.37,842.2,8.02478392]
[1766133084655,0.8827825,843.43,842.23,0.88593845]
[1766133084954,1.16622816,843.42,842.23,0.88593845]
[1766133085253,0.8827825,843.38,842.2,8.02478392]
[1766133085450,1.16622816,843.37,842.2,8.02478392]
[1766133086553,0.8827825,843.42,842.2,8.91072237]
[1766133086754,1.16628723,843.41,842.2,8.91072237]
[1766133086948,1.16628723,843.41,842.27,0.88593845]
[1766133087149,0.8827825,843.48,842.27,0.88593845]
[1766133087351,1.16642679,843.47,842.27,0.88593845]
[1766133088255,0.8827825,843.48,842.27,0.88593845]
[1766133088455,0.8827825,843.53,842.31,0.88593845]
[1766133088653,1.16641893,843.52,842.31,0.88593845]
[1766133090351,1.16641893,843.52,842.2,8.02478392]
[1766133090352,0.8827825,843.46,842.24,0.88593845]
[1766133090551,1.16641893,843.45,842.24,0.88593845]
[1766133090750,13.16219057,843.45,842.24,0.88593845]
[1766133091049,1.16641893,843.44,842.24,0.88593845]
[1766133091748,11.99577164,843.45,842.24,0.88593845]
[1766133091954,11.99577164,843.45,842.3,0.88593845]
[1766133093952,11.99577164,843.45,842.31,0.88593845]
[1766133094156,11.99577164,843.45,842.3,0.88593845]
[1766133094351,11.99577164,843.45,842.31,0.88593845]
[1766133095253,11.99577164,843.45,842.32,0.88593845]
[1766133098458,11.99577164,843.45,842.39,0.88593845]
[1766133099155,11.99577164,843.45,842.38,0.88593845]
[1766133099357,11.99577164,843.45,842.39,0.88593845]
[1766133099562,11.99577164,843.45,842.49,0.88593845]
[1766133101464,11.99577164,843.45,842.41,0.88593845]
[1766133103162,11.99577164,843.45,842.4,0.88593845]
[1766133103360,11.99577164,843.45,842.35,0.88593845]
[1766133107068,11.99577164,843.45,842.38,0.88593845]
[1766133107269,11.99577164,843.45,842.39,0.88593845]
[1766133108368,11.99577164,843.45,842.38,0.88593845]
[1766133109869,11.99577164,843.45,842.37,0.88593845]
[1766133110368,11.99577164,843.45,842.36,0.88593845]
[1766133110565,11.99577164,843.45,842.34,0.88593845]
[1766133111165,1.1667321,843.44,842.29,0.88593845]
[1766133111469,11.99577164,843.45,842.29,0.88593845]
[1766133113373,11.99577164,843.45,842.25,0.88593845]
[1766133113572,1.16660345,843.44,842.25,0.88593845]
[1766133113971,2.04938595,843.44,842.23,0.88593845]
[1766133114173,1.16660345,843.43,842.23,0.88593845]
[1766133115874,1.16660345,843.43,842.24,0.88593845]
[1766133116071,11.99577164,843.45,842.33,0.88593845]
[1766133116268,11.99577164,843.45,842.35,0.88593845]
[1766133116574,1.16654435,843.44,842.26,0.88593845]
[1766133117873,1.16654435,843.44,842.28,0.88593845]
[1766133118169,1.16654435,843.44,842.29,0.88593845]
[1766133120577,0.8827825,843.41,842.23,0.88593845]
[1766133120778,1.16654435,843.4,842.23,0.88593845]
[1766133121080,2.04932685,843.4,842.23,0.88593845]
[1766133121375,1.16654435,843.39,842.23,0.88593845]
[1766133122279,1.16654435,843.39,842.2,8.02478392]
[1766133122280,2.04932685,843.39,842.24,0.88593845]